[Event "*** Titled Tuesday Blitz"]
[Site "Chess.com"]
[Date "2019.03.05"]
[Round "2"]
[White "bascheyaro"]
[Black "IIIlllII1llIl"]
[Result "1-0"]
[WhiteElo "2795"]
[BlackElo "2571"]
[TimeControl "180+2"]
[EndTime "13:26:04 PST"]
[Termination "bascheyaro won on time"]

1. d4 {[%clk 0:03:01.9]} 1... g6 {[%clk 0:03:00.2]} 2. c4 {[%clk 0:03:03.1]}
2... Bg7 {[%clk 0:03:01.2]} 3. Nc3 {[%clk 0:03:04.6]} 3... Nf6 {[%clk
0:03:02.3]} 4. Nf3 {[%clk 0:03:06.1]} 4... O-O {[%clk 0:03:02.9]} 5. Bf4 {[%clk
0:03:07.4]} 5... d6 {[%clk 0:03:02.9]} 6. e3 {[%clk 0:03:08.5]} 6... c5 {[%clk
0:03:03.7]} 7. Be2 {[%clk 0:03:09.2]} 7... Bf5 {[%clk 0:02:57.2]} 8. O-O {[%clk
0:03:09.7]} 8... Ne4 {[%clk 0:02:57.5]} 9. Nxe4 {[%clk 0:03:04.2]} 9... Bxe4
{[%clk 0:02:59.4]} 10. Nd2 {[%clk 0:03:05.4]} 10... Bf5 {[%clk 0:02:51.7]} 11.
Bf3 {[%clk 0:03:02.6]} 11... Qc8 {[%clk 0:02:51.7]} 12. Nb3 {[%clk 0:02:53]}
12... cxd4 {[%clk 0:02:02]} 13. exd4 {[%clk 0:02:54.9]} 13... Nc6 {[%clk
0:01:59.7]} 14. Rc1 {[%clk 0:02:47.7]} 14... e5 {[%clk 0:01:48.6]} 15. Be3
{[%clk 0:02:35.8]} 15... Re8 {[%clk 0:01:32.4]} 16. c5 {[%clk 0:02:29.2]} 16...
e4 {[%clk 0:01:30.9]} 17. Be2 {[%clk 0:02:27.4]} 17... d5 {[%clk 0:01:32]} 18.
Qd2 {[%clk 0:02:26.9]} 18... Bg4 {[%clk 0:00:53.6]} 19. Rcd1 {[%clk 0:02:26.5]}
19... h5 {[%clk 0:00:50.8]} 20. Bxg4 {[%clk 0:02:22.2]} 20... Qxg4 {[%clk
0:00:52.7]} 21. Na5 {[%clk 0:02:21.2]} 21... Qd7 {[%clk 0:00:43.3]} 22. Nxc6
{[%clk 0:02:20.3]} 22... bxc6 {[%clk 0:00:45.2]} 23. b4 {[%clk 0:02:21.2]} 23...
a5 {[%clk 0:00:44.2]} 24. Rb1 {[%clk 0:02:20.4]} 24... axb4 {[%clk 0:00:42.9]}
25. Rxb4 {[%clk 0:02:22.3]} 25... Reb8 {[%clk 0:00:34.9]} 26. Rfb1 {[%clk
0:02:21.3]} 26... Rxb4 {[%clk 0:00:35.5]} 27. Rxb4 {[%clk 0:02:22.9]} 27... Ra3
{[%clk 0:00:28.7]} 28. Rb3 {[%clk 0:02:08.3]} 28... Ra4 {[%clk 0:00:21.6]} 29.
Qb2 {[%clk 0:02:04.3]} 29... Qa7 {[%clk 0:00:21.5]} 30. a3 {[%clk 0:02:05.3]}
30... Rc4 {[%clk 0:00:16.7]} 31. h3 {[%clk 0:02:03]} 31... Rxc5 {[%clk
0:00:15.1]} 32. Rb8+ {[%clk 0:02:04.1]} 32... Kh7 {[%clk 0:00:15.9]} 33. Rb7
{[%clk 0:02:05.4]} 33... Qa5 {[%clk 0:00:13.3]} 34. Rxf7 {[%clk 0:01:58.3]}
34... Qe1+ {[%clk 0:00:14.2]} 35. Kh2 {[%clk 0:01:59.3]} 35... Rb5 {[%clk
0:00:14.5]} 36. Qc2 {[%clk 0:01:50.5]} 36... h4 {[%clk 0:00:10.7]} 37. Bd2
{[%clk 0:01:26.1]} 37... Qf1 {[%clk 0:00:10.8]} 38. Bb4 {[%clk 0:01:23.8]} 38...
Kg8 {[%clk 0:00:09.9]} 39. Rc7 {[%clk 0:01:16.4]} 39... Bxd4 {[%clk 0:00:06]}
40. Rc8+ {[%clk 0:01:02.6]} 40... Kh7 {[%clk 0:00:07.2]} 41. Rc7+ {[%clk
0:01:02.8]} 41... Kg8 {[%clk 0:00:08.3]} 42. Rxc6 {[%clk 0:00:57.2]} 42... Be5+
{[%clk 0:00:07.4]} 43. g3 {[%clk 0:00:58.8]} 43... hxg3+ {[%clk 0:00:08]} 44.
fxg3 {[%clk 0:01:00.1]} 44... Qf3 {[%clk 0:00:08.8]} 45. Rxg6+ {[%clk
0:00:59.4]} 45... Kh7 {[%clk 0:00:08.1]} 46. Rg4 {[%clk 0:00:58.6]} 46... Rb7
{[%clk 0:00:08.7]} 47. Rh4+ {[%clk 0:00:53.9]} 47... Kg7 {[%clk 0:00:09.6]} 48.
Rg4+ {[%clk 0:00:50.5]} 48... Kh7 {[%clk 0:00:10.7]} 49. Qg2 {[%clk 0:00:51.7]}
49... Rf7 {[%clk 0:00:11.2]} 50. Rg5 {[%clk 0:00:50.1]} 50... Bb8 {[%clk
0:00:10.4]} 51. Qxf3 {[%clk 0:00:37.4]} 51... Rxf3 {[%clk 0:00:10.5]} 52. Rxd5
{[%clk 0:00:37.5]} 52... Bxg3+ {[%clk 0:00:10.1]} 53. Kg2 {[%clk 0:00:38.8]}
53... Bh4 {[%clk 0:00:06.4]} 54. Rh5+ {[%clk 0:00:38.6]} 54... Kg6 {[%clk
0:00:07.1]} 55. Rxh4 {[%clk 0:00:40]} 55... Kf5 {[%clk 0:00:08.5]} 56. Rg4
{[%clk 0:00:40.1]} 56... Rb3 {[%clk 0:00:09.1]} 57. Rg3 {[%clk 0:00:39.7]} 57...
Rb2+ {[%clk 0:00:07.7]} 58. Kf1 {[%clk 0:00:41.1]} 58... Kf4 {[%clk 0:00:08.6]}
59. Bd6+ {[%clk 0:00:42.3]} 59... Kf5 {[%clk 0:00:09.2]} 60. Rc3 {[%clk
0:00:40.5]} 60... Ke6 {[%clk 0:00:07.2]} 61. Bf4 {[%clk 0:00:40.9]} 61... Kf5
{[%clk 0:00:07.9]} 62. Bg3 {[%clk 0:00:42.2]} 62... Ke6 {[%clk 0:00:05.5]} 63.
h4 {[%clk 0:00:43.5]} 63... Kd5 {[%clk 0:00:06.7]} 64. h5 {[%clk 0:00:43.8]}
64... Kd4 {[%clk 0:00:07.8]} 65. h6 {[%clk 0:00:36.3]} 65... Rb1+ {[%clk
0:00:06.7]} 66. Be1 {[%clk 0:00:37.5]} 66... Rb6 {[%clk 0:00:03.8]} 67. Rh3
{[%clk 0:00:38.4]} 67... Rf6+ {[%clk 0:00:04.2]} 68. Ke2 {[%clk 0:00:39.5]} 1-0

[Event "*** Titled Tuesday Blitz"]
[Site "Chess.com"]
[Date "2019.03.05"]
[Round "2"]
[White "Koksik_13"]
[Black "penguingm1"]
[Result "1/2-1/2"]
[WhiteElo "2632"]
[BlackElo "2885"]
[TimeControl "180+2"]
[EndTime "13:26:06 PST"]
[Termination "Game drawn by repetition"]

1. e4 {[%clk 0:03:01.9]} 1... e5 {[%clk 0:03:00.1]} 2. Nf3 {[%clk 0:03:01.2]}
2... Nc6 {[%clk 0:03:01.4]} 3. Nc3 {[%clk 0:02:59.9]} 3... Nf6 {[%clk
0:03:02.5]} 4. d4 {[%clk 0:02:58.4]} 4... exd4 {[%clk 0:03:04.4]} 5. Nxd4 {[%clk
0:02:59.1]} 5... Bb4 {[%clk 0:03:05.9]} 6. Nxc6 {[%clk 0:03:00.2]} 6... bxc6
{[%clk 0:03:07.8]} 7. Bd3 {[%clk 0:03:01.7]} 7... d5 {[%clk 0:03:09.2]} 8. exd5
{[%clk 0:03:03]} 8... cxd5 {[%clk 0:03:11.1]} 9. O-O {[%clk 0:03:04.6]} 9... O-O
{[%clk 0:03:12.6]} 10. h3 {[%clk 0:03:05.7]} 10... c6 {[%clk 0:03:13.6]} 11. Qf3
{[%clk 0:03:07]} 11... Rb8 {[%clk 0:03:01.2]} 12. Bf4 {[%clk 0:03:07]} 12... Bd6
{[%clk 0:03:01.9]} 13. b3 {[%clk 0:03:08.4]} 13... h6 {[%clk 0:02:52.3]} 14.
Rfe1 {[%clk 0:03:04.1]} 14... Rb4 {[%clk 0:02:37.7]} 15. Bxd6 {[%clk 0:03:04.6]}
15... Qxd6 {[%clk 0:02:38.6]} 16. Rad1 {[%clk 0:03:06.2]} 16... Be6 {[%clk
0:02:39.1]} 17. Ne2 {[%clk 0:03:07.3]} 17... a5 {[%clk 0:02:37.9]} 18. c4 {[%clk
0:03:06.2]} 18... a4 {[%clk 0:02:36.4]} 19. Bc2 {[%clk 0:03:07.7]} 19... axb3
{[%clk 0:02:34.9]} 20. axb3 {[%clk 0:03:09.6]} 20... Re8 {[%clk 0:01:47.8]} 21.
Nd4 {[%clk 0:03:09.5]} 21... Rbb8 {[%clk 0:01:40.6]} 22. Bf5 {[%clk 0:03:06.3]}
22... Bxf5 {[%clk 0:01:18.5]} 23. Nxf5 {[%clk 0:03:06.7]} 23... Qb4 {[%clk
0:00:36.3]} 24. Rxe8+ {[%clk 0:02:39.9]} 24... Rxe8 {[%clk 0:00:27]} 25. Nxh6+
{[%clk 0:02:23.7]} 25... Kf8 {[%clk 0:00:24.7]} 26. Nf5 {[%clk 0:02:13.4]} 26...
Re1+ {[%clk 0:00:13.4]} 27. Kh2 {[%clk 0:02:06.1]} 27... Qb8+ {[%clk 0:00:11]}
28. g3 {[%clk 0:02:04.9]} 28... Qe5 {[%clk 0:00:08.1]} 29. Rxe1 {[%clk
0:02:00.5]} 29... Qxe1 {[%clk 0:00:09]} 30. Qf4 {[%clk 0:02:01.9]} 30... Kg8
{[%clk 0:00:03.2]} 31. Kg2 {[%clk 0:01:56.4]} 31... Ne4 {[%clk 0:00:04.3]} 32.
Ne7+ {[%clk 0:01:48.7]} 32... Kf8 {[%clk 0:00:05.3]} 33. Nxc6 {[%clk 0:01:47.4]}
33... Kg8 {[%clk 0:00:03.7]} 34. Ne7+ {[%clk 0:01:48.6]} 34... Kf8 {[%clk
0:00:04.3]} 35. Nxd5 {[%clk 0:01:49.6]} 35... Kg8 {[%clk 0:00:05.4]} 36. Ne7+
{[%clk 0:01:44.1]} 36... Kf8 {[%clk 0:00:06.2]} 37. Nf5 {[%clk 0:01:41.4]} 37...
Kg8 {[%clk 0:00:07.6]} 38. Qe3 {[%clk 0:01:41.5]} 38... Qb1 {[%clk 0:00:07.8]}
39. Qd4 {[%clk 0:01:37]} 39... Nf6 {[%clk 0:00:08.3]} 40. Ne7+ {[%clk
0:01:36.6]} 40... Kf8 {[%clk 0:00:07.1]} 41. Nd5 {[%clk 0:01:31]} 41... Ne4
{[%clk 0:00:04.6]} 42. Nc3 {[%clk 0:01:29.8]} 42... Nxc3 {[%clk 0:00:04.9]} 43.
Qxc3 {[%clk 0:01:30.9]} 43... Qe4+ {[%clk 0:00:06.4]} 44. Qf3 {[%clk 0:01:31.1]}
44... Qc2 {[%clk 0:00:08]} 45. h4 {[%clk 0:01:30.4]} 45... g6 {[%clk 0:00:09.3]}
46. Qd5 {[%clk 0:01:23.9]} 46... Qxb3 {[%clk 0:00:09.9]} 47. Qd6+ {[%clk
0:01:24.5]} 47... Kg8 {[%clk 0:00:09.8]} 48. Qd8+ {[%clk 0:01:24]} 48... Kh7
{[%clk 0:00:10.2]} 49. Qc7 {[%clk 0:01:24.1]} 49... Kg8 {[%clk 0:00:10.6]} 50.
c5 {[%clk 0:01:24.8]} 50... Qd5+ {[%clk 0:00:11.5]} 51. Kh2 {[%clk 0:01:25.2]}
51... Qd4 {[%clk 0:00:07.7]} 52. Qc8+ {[%clk 0:01:22.1]} 52... Kg7 {[%clk
0:00:07.8]} 53. Kg1 {[%clk 0:01:07.4]} 53... Qd1+ {[%clk 0:00:07.9]} 54. Kg2
{[%clk 0:01:08.3]} 54... Qd5+ {[%clk 0:00:09.3]} 55. Kh2 {[%clk 0:01:04.9]}
55... Qf3 {[%clk 0:00:08.3]} 56. Kh3 {[%clk 0:00:39.4]} 56... Qh1+ {[%clk
0:00:07.3]} 57. Kg4 {[%clk 0:00:31.6]} 57... Qe4+ {[%clk 0:00:08.2]} 58. Kh3
{[%clk 0:00:19.5]} 58... Qh1+ {[%clk 0:00:09.4]} 59. Kg4 {[%clk 0:00:20.7]}
59... Qe4+ {[%clk 0:00:08.6]} 60. Kh3 {[%clk 0:00:06.9]} 60... Qh1+ {[%clk
0:00:09.8]} 61. Kg4 {[%clk 0:00:06.3]} 61... Qe4+ {[%clk 0:00:06.9]} 62. Kh3
{[%clk 0:00:04.6]} 62... Qh1+ {[%clk 0:00:07.9]} 63. Kg4 {[%clk 0:00:04.6]}
63... Qe4+ {[%clk 0:00:05.5]} 64. Kh3 {[%clk 0:00:03.8]} 64... Qh1+ {[%clk
0:00:07.1]} 1/2-1/2

[Event "*** Titled Tuesday Blitz"]
[Site "Chess.com"]
[Date "2019.03.05"]
[Round "2"]
[White "DrRiebert"]
[Black "OparinGrigoriy"]
[Result "1-0"]
[WhiteElo "2437"]
[BlackElo "2967"]
[TimeControl "180+2"]
[EndTime "13:26:06 PST"]
[Termination "DrRiebert won by resignation"]

1. e4 {[%clk 0:03:01.9]} 1... c6 {[%clk 0:03:00.6]} 2. d4 {[%clk 0:03:03]} 2...
d5 {[%clk 0:03:02.5]} 3. e5 {[%clk 0:03:01.1]} 3... c5 {[%clk 0:03:03.3]} 4.
dxc5 {[%clk 0:02:41]} 4... e6 {[%clk 0:03:04]} 5. a3 {[%clk 0:02:37.9]} 5...
Bxc5 {[%clk 0:03:05]} 6. b4 {[%clk 0:02:28.8]} 6... Bb6 {[%clk 0:03:06]} 7. Qg4
{[%clk 0:02:30.3]} 7... Ne7 {[%clk 0:03:06.5]} 8. Nf3 {[%clk 0:02:20.7]} 8...
O-O {[%clk 0:02:56.2]} 9. Bd3 {[%clk 0:02:19.9]} 9... f5 {[%clk 0:02:53.9]} 10.
exf6 {[%clk 0:02:11.9]} 10... Rxf6 {[%clk 0:02:55.3]} 11. Qh5 {[%clk 0:02:13.6]}
11... g6 {[%clk 0:02:28]} 12. Qg5 {[%clk 0:02:09.7]} 12... Qf8 {[%clk
0:01:47.1]} 13. Nbd2 {[%clk 0:01:55.9]} 13... e5 {[%clk 0:01:07.2]} 14. Bb2
{[%clk 0:01:44.6]} 14... Nbc6 {[%clk 0:00:34.4]} 15. O-O-O {[%clk 0:01:28.3]}
15... Bf5 {[%clk 0:00:25.1]} 16. Nxe5 {[%clk 0:01:05.5]} 16... Nxe5 {[%clk
0:00:19.8]} 17. Bxe5 {[%clk 0:01:05.8]} 17... Re6 {[%clk 0:00:21.2]} 18. Bg3
{[%clk 0:00:24.2]} 18... Bxd3 {[%clk 0:00:19.2]} 19. cxd3 {[%clk 0:00:26.1]}
19... Rc8+ {[%clk 0:00:20.2]} 20. Kb1 {[%clk 0:00:26.7]} 20... Nf5 {[%clk
0:00:17.6]} 21. Rhe1 {[%clk 0:00:22.2]} 21... Qe8 {[%clk 0:00:14.3]} 22. Nf3
{[%clk 0:00:15.8]} 22... a5 {[%clk 0:00:13.9]} 23. Qd2 {[%clk 0:00:16.2]} 23...
axb4 {[%clk 0:00:15]} 24. Qxb4 {[%clk 0:00:17.8]} 24... Bc5 {[%clk 0:00:15.8]}
25. Qb3 {[%clk 0:00:14.7]} 25... Qd7 {[%clk 0:00:13.9]} 26. Rxe6 {[%clk
0:00:15.6]} 26... Qxe6 {[%clk 0:00:15.8]} 27. Re1 {[%clk 0:00:17]} 27... Qc6
{[%clk 0:00:14.7]} 28. Re5 {[%clk 0:00:16.9]} 28... Rd8 {[%clk 0:00:14.6]} 29.
a4 {[%clk 0:00:11.6]} 29... Bf8 {[%clk 0:00:14.7]} 30. Re2 {[%clk 0:00:10.7]}
30... Bg7 {[%clk 0:00:15]} 31. Rc2 {[%clk 0:00:11.6]} 31... Qe6 {[%clk
0:00:15.7]} 32. Qxb7 {[%clk 0:00:06.7]} 32... Re8 {[%clk 0:00:14]} 33. Rc7
{[%clk 0:00:06]} 33... Qf6 {[%clk 0:00:14.4]} 34. d4 {[%clk 0:00:06.5]} 34...
Nxd4 {[%clk 0:00:14.6]} 35. Rxg7+ {[%clk 0:00:03.8]} 35... Qxg7 {[%clk
0:00:15.4]} 36. Qxd5+ {[%clk 0:00:05]} 36... Ne6 {[%clk 0:00:15.5]} 37. Ng5
{[%clk 0:00:06]} 37... Qe7 {[%clk 0:00:08.8]} 38. Nxe6 {[%clk 0:00:07.1]} 38...
Qxe6 {[%clk 0:00:10.7]} 39. Qxe6+ {[%clk 0:00:08.5]} 39... Rxe6 {[%clk
0:00:11.7]} 40. a5 {[%clk 0:00:09.9]} 40... Kf7 {[%clk 0:00:10.5]} 41. Kc2
{[%clk 0:00:10.7]} 41... Re4 {[%clk 0:00:11.2]} 42. Kb3 {[%clk 0:00:09.5]} 42...
Re1 {[%clk 0:00:11.4]} 43. Bd6 {[%clk 0:00:09.9]} 43... Rb1+ {[%clk 0:00:12]}
44. Kc4 {[%clk 0:00:07.8]} 44... Ke6 {[%clk 0:00:13.1]} 45. Bb4 {[%clk
0:00:08.1]} 45... Kd7 {[%clk 0:00:14.4]} 46. Kb5 {[%clk 0:00:09.1]} 46... Kc7
{[%clk 0:00:15.4]} 47. Kc4 {[%clk 0:00:09.5]} 47... Kc6 {[%clk 0:00:16.3]} 48.
g3 {[%clk 0:00:10.3]} 48... g5 {[%clk 0:00:16.5]} 49. Bd2 {[%clk 0:00:10.8]}
49... g4 {[%clk 0:00:17.6]} 50. Kd3 {[%clk 0:00:10.8]} 50... Rh1 {[%clk
0:00:18.9]} 51. Be3 {[%clk 0:00:12.1]} 51... Rxh2 {[%clk 0:00:20.4]} 52. Ke4
{[%clk 0:00:13.9]} 52... Kb5 {[%clk 0:00:21]} 53. Bb6 {[%clk 0:00:13.9]} 53...
h5 {[%clk 0:00:21.7]} 54. Kf4 {[%clk 0:00:15.4]} 54... Rh3 {[%clk 0:00:22.7]}
55. Kg5 {[%clk 0:00:16.2]} 55... Ka6 {[%clk 0:00:23.2]} 56. Kf4 {[%clk 0:00:17]}
56... Rh1 {[%clk 0:00:24.6]} 57. Kg5 {[%clk 0:00:18]} 57... Kb7 {[%clk
0:00:26.1]} 58. Kf4 {[%clk 0:00:19.3]} 58... Kc6 {[%clk 0:00:27.6]} 59. Kg5
{[%clk 0:00:20.9]} 59... Kd5 {[%clk 0:00:29.1]} 60. a6 {[%clk 0:00:21.6]} 60...
Ke4 {[%clk 0:00:29]} 61. a7 {[%clk 0:00:22.4]} 61... Ra1 {[%clk 0:00:29.2]} 62.
Be3 {[%clk 0:00:20.3]} 62... Ra5+ {[%clk 0:00:29.2]} 63. Kh4 {[%clk 0:00:19.9]}
63... Kf3 {[%clk 0:00:28.4]} 64. Bb6 {[%clk 0:00:19]} 64... Ra6 {[%clk
0:00:29.6]} 65. Bc5 {[%clk 0:00:20.4]} 65... Ke4 {[%clk 0:00:29.8]} 66. Kg5
{[%clk 0:00:20.4]} 66... Ke5 {[%clk 0:00:29.3]} 67. Be3 {[%clk 0:00:20.4]} 67...
Ke6 {[%clk 0:00:30.7]} 68. Bc5 {[%clk 0:00:19.8]} 68... Ra5 {[%clk 0:00:31.1]}
69. Kh4 {[%clk 0:00:20.5]} 69... Kf5 {[%clk 0:00:31.3]} 70. Bb6 {[%clk
0:00:21.2]} 70... Ra1 {[%clk 0:00:32.3]} 71. a8=Q {[%clk 0:00:19.4]} 71... Rh1+
{[%clk 0:00:34]} 72. Qxh1 {[%clk 0:00:19.6]} 1-0

[Event "*** Titled Tuesday Blitz"]
[Site "Chess.com"]
[Date "2019.03.05"]
[Round "2"]
[White "Orange_Ghost"]
[Black "SerGo055"]
[Result "1-0"]
[WhiteElo "2548"]
[BlackElo "2471"]
[TimeControl "180+2"]
[EndTime "13:26:34 PST"]
[Termination "Orange_Ghost won by resignation"]

1. d4 {[%clk 0:03:01.9]} 1... Nf6 {[%clk 0:03:00.5]} 2. c4 {[%clk 0:03:02.6]}
2... e6 {[%clk 0:03:01.6]} 3. Nc3 {[%clk 0:03:03.2]} 3... d5 {[%clk 0:03:02.5]}
4. cxd5 {[%clk 0:03:04.1]} 4... exd5 {[%clk 0:03:02.5]} 5. Bg5 {[%clk
0:03:04.2]} 5... c6 {[%clk 0:03:02.3]} 6. e3 {[%clk 0:03:03.9]} 6... Be7 {[%clk
0:03:03.1]} 7. Qc2 {[%clk 0:03:04.1]} 7... O-O {[%clk 0:02:57.9]} 8. Bd3 {[%clk
0:03:03.5]} 8... h6 {[%clk 0:02:59]} 9. Bh4 {[%clk 0:03:03.7]} 9... Nbd7 {[%clk
0:02:49.9]} 10. Nge2 {[%clk 0:03:03.1]} 10... a6 {[%clk 0:02:42.6]} 11. f3
{[%clk 0:03:01.5]} 11... c5 {[%clk 0:02:40]} 12. O-O {[%clk 0:02:41.2]} 12... c4
{[%clk 0:02:34.8]} 13. Bf5 {[%clk 0:02:41.6]} 13... b5 {[%clk 0:02:36.1]} 14. e4
{[%clk 0:02:05.7]} 14... dxe4 {[%clk 0:02:13.8]} 15. fxe4 {[%clk 0:02:03.4]}
15... Nb6 {[%clk 0:02:14.3]} 16. Rad1 {[%clk 0:01:46.5]} 16... Bxf5 {[%clk
0:02:06.1]} 17. Rxf5 {[%clk 0:01:40.4]} 17... Ng4 {[%clk 0:02:06.3]} 18. Bxe7
{[%clk 0:01:34.8]} 18... Qxe7 {[%clk 0:02:07.2]} 19. Rf3 {[%clk 0:01:18.9]}
19... b4 {[%clk 0:01:58.3]} 20. h3 {[%clk 0:00:54.9]} 20... bxc3 {[%clk
0:01:46.8]} 21. hxg4 {[%clk 0:00:55.1]} 21... cxb2 {[%clk 0:01:47.8]} 22. Qxb2
{[%clk 0:00:45.1]} 22... Qxe4 {[%clk 0:01:43.4]} 23. Ng3 {[%clk 0:00:45.1]}
23... Qg6 {[%clk 0:01:31.1]} 24. d5 {[%clk 0:00:33.4]} 24... Rad8 {[%clk
0:01:27.1]} 25. Nf5 {[%clk 0:00:32.8]} 25... Rfe8 {[%clk 0:01:27.5]} 26. d6
{[%clk 0:00:32.1]} 26... Na8 {[%clk 0:00:12.8]} 27. Kh2 {[%clk 0:00:21.5]} 27...
Kh7 {[%clk 0:00:13.2]} 28. Rd4 {[%clk 0:00:19.4]} 28... Rd7 {[%clk 0:00:11.4]}
29. Rxc4 {[%clk 0:00:18.3]} 29... Re6 {[%clk 0:00:08.3]} 30. Rcf4 {[%clk
0:00:18.6]} 30... f6 {[%clk 0:00:07.7]} 31. Qb8 {[%clk 0:00:18.7]} 31... Re8
{[%clk 0:00:07.6]} 32. Qb3 {[%clk 0:00:17.4]} 32... Qf7 {[%clk 0:00:05.7]} 33.
Qxf7 {[%clk 0:00:17.4]} 33... Rxf7 {[%clk 0:00:07.3]} 34. Rb3 {[%clk 0:00:18.9]}
34... Rd7 {[%clk 0:00:06.6]} 35. Ra4 {[%clk 0:00:18.5]} 35... g6 {[%clk
0:00:05.5]} 36. Ng3 {[%clk 0:00:18.9]} 36... Rxd6 {[%clk 0:00:06.8]} 37. Rb7+
{[%clk 0:00:19.4]} 37... Kg8 {[%clk 0:00:07.6]} 38. Ne4 {[%clk 0:00:20.6]} 38...
Rde6 {[%clk 0:00:06.9]} 39. Nc5 {[%clk 0:00:21.4]} 39... R6e7 {[%clk 0:00:08.2]}
40. Rxa6 {[%clk 0:00:20.3]} 40... Rxb7 {[%clk 0:00:08.1]} 41. Nxb7 {[%clk
0:00:22.2]} 41... Nc7 {[%clk 0:00:09.7]} 42. Rxf6 {[%clk 0:00:22.9]} 42... Kg7
{[%clk 0:00:11.3]} 43. Rf3 {[%clk 0:00:23.2]} 43... Nd5 {[%clk 0:00:11.4]} 44.
Nd6 {[%clk 0:00:23.3]} 44... Re2 {[%clk 0:00:11.3]} 45. Rf7+ {[%clk 0:00:22.9]}
45... Kg8 {[%clk 0:00:12.5]} 46. Ra7 {[%clk 0:00:18.6]} 46... Ne3 {[%clk
0:00:12.5]} 47. Ra8+ {[%clk 0:00:19.3]} 47... Kg7 {[%clk 0:00:12.7]} 48. Kh3
{[%clk 0:00:18.7]} 48... Nxg2 {[%clk 0:00:11.5]} 49. Kg3 {[%clk 0:00:16]} 49...
Ne1 {[%clk 0:00:11.8]} 50. a4 {[%clk 0:00:16.4]} 50... Rg2+ {[%clk 0:00:11.7]}
51. Kh3 {[%clk 0:00:17]} 51... Rd2 {[%clk 0:00:11.9]} 52. Ne8+ {[%clk
0:00:16.1]} 52... Kf7 {[%clk 0:00:12.5]} 53. Nc7 {[%clk 0:00:17]} 53... Ra2
{[%clk 0:00:07.8]} 54. a5 {[%clk 0:00:17]} 54... Nd3 {[%clk 0:00:08.8]} 55. Kg3
{[%clk 0:00:16.9]} 55... Nc5 {[%clk 0:00:08.6]} 56. a6 {[%clk 0:00:16.1]} 56...
Ke7 {[%clk 0:00:07]} 57. a7 {[%clk 0:00:16.9]} 57... Kd7 {[%clk 0:00:06.9]} 58.
Nd5 {[%clk 0:00:14.2]} 58... Kc6 {[%clk 0:00:05.3]} 59. Rc8+ {[%clk 0:00:13.9]}
59... Kxd5 {[%clk 0:00:05]} 60. a8=Q+ {[%clk 0:00:14.6]} 60... Rxa8 {[%clk
0:00:06.6]} 61. Rxa8 {[%clk 0:00:16.5]} 61... Ke6 {[%clk 0:00:06.8]} 62. Rh8
{[%clk 0:00:15.8]} 62... Ne4+ {[%clk 0:00:04.7]} 63. Kf4 {[%clk 0:00:16.3]}
63... Nf6 {[%clk 0:00:04.6]} 64. Rxh6 {[%clk 0:00:16.7]} 64... Kf7 {[%clk
0:00:06.2]} 65. g5 {[%clk 0:00:16.6]} 65... Ng8 {[%clk 0:00:03.7]} 66. Rh7+
{[%clk 0:00:15.8]} 66... Ke6 {[%clk 0:00:05.3]} 67. Rg7 {[%clk 0:00:16.3]} 67...
Ne7 {[%clk 0:00:06.9]} 68. Ke4 {[%clk 0:00:17.4]} 68... Kd6 {[%clk 0:00:08.2]}
69. Rf7 {[%clk 0:00:18.5]} 69... Ke6 {[%clk 0:00:09.3]} 70. Rf6+ {[%clk
0:00:19.3]} 70... Kd7 {[%clk 0:00:10.7]} 71. Ke5 {[%clk 0:00:20.5]} 71... Nc6+
{[%clk 0:00:10.6]} 72. Rxc6 {[%clk 0:00:18.3]} 72... Kxc6 {[%clk 0:00:11.7]} 73.
Kf6 {[%clk 0:00:20.2]} 73... Kd6 {[%clk 0:00:13]} 74. Kxg6 {[%clk 0:00:21.7]}
74... Ke7 {[%clk 0:00:14.6]} 75. Kh7 {[%clk 0:00:23.2]} 1-0